fUST/lending_fUST_20241002
["ID","MTS","AMOUNT","RATE_DAILY","PERIOD"]
[339659983,1727817053055,-272.965158,0.0001383,2]
[339659984,1727817053066,-151.0,0.0001383,2]
[339659985,1727817053080,-151.0,0.0001383,2]
[339659986,1727817053091,-151.0,0.0001383,2]
[339659987,1727817053101,-317.809155,0.0001383,2]
[339659988,1727817053111,-317.809155,0.0001383,2]
[339659989,1727817053121,-212.711103,0.0001383,2]
[339659990,1727817053131,-522.929342,0.0001383,2]
[339659991,1727817053140,-522.929337,0.0001383,2]
[339659992,1727817053150,-151.0,0.0001383,2]
[339659993,1727817053159,-151.0,0.00013841,2]
[339659994,1727817053170,-151.0,0.00013841,2]
[339659995,1727817053179,-317.809155,0.00013842,2]
[339659996,1727817053187,-317.809146,0.00013842,2]
[339659997,1727817053197,-247.39182847,0.0001385,2]
[339659998,1727817053206,-2787.3887143,0.0001385,2]
[339659999,1727817053215,-151.0,0.00013852,2]
[339660000,1727817053225,-151.0,0.00013852,2]
[339660001,1727817053234,-151.0,0.00013852,2]
[339660002,1727817053243,-151.0,0.00013852,2]
[339660003,1727817053253,-175.530664,0.00013852,2]
[339660004,1727817053262,-175.530664,0.00013852,2]
[339660005,1727817053271,-175.530664,0.00013852,2]
[339660006,1727817053280,-175.530664,0.00013852,2]
[339660007,1727817053289,-151.0,0.00013852,2]
[339660008,1727817053298,-151.0,0.00013852,2]
[339660009,1727817053308,-151.0,0.00013852,2]
[339660010,1727817053318,-151.0,0.00013852,2]
[339660011,1727817053327,-151.0,0.00013852,2]
[339660012,1727817053336,-151.0,0.00013852,2]
[339660013,1727817053345,-151.0,0.00013852,2]
[339660014,1727817053354,-500.0,0.00013853,2]
[339660015,1727817053363,-500.0,0.00013856,2]
[339660016,1727817053376,-150.0,0.00013856,2]
[339660017,1727817053387,-374.78488654,0.00013873,2]
[339660018,1727817053397,-500.0,0.00013873,2]
[339660019,1727817053408,-500.54868513,0.00013873,2]
[339660020,1727817053421,-508.87933556,0.00013873,2]
[339660021,1727817053432,-500.0,0.00013873,2]
[339660022,1727817053443,-500.0,0.00013873,2]
[339660023,1727817053453,-500.0,0.00013873,2]
[339660024,1727817053463,-500.0,0.00013873,2]
[339660025,1727817053472,-500.0,0.00013873,2]
[339660026,1727817053482,-556.79355992,0.00013873,2]
[339660027,1727817053492,-500.0,0.00013873,2]
[339660028,1727817053502,-500.36366789,0.00013873,2]
[339660029,1727817053513,-190.93114898,0.00013873,2]
[339660030,1727817053524,-500.0,0.00013873,2]
[339660031,1727817053536,-500.0,0.00013873,2]
[339660032,1727817053550,-500.0,0.00013873,2]
[339660033,1727817053560,-500.0,0.00013873,2]
[339660034,1727817053571,-197.97836138,0.00013873,2]
[339660035,1727817053583,-182.49903814,0.00013873,2]
[339660036,1727817053594,-500.0,0.00013873,2]
[339660037,1727817053603,-498.11269694,0.00013873,2]
[339660038,1727817053613,-461.60293191,0.00013873,2]
[339660039,1727817053624,-500.0,0.00013873,2]
[339660040,1727817053633,-210.08588892,0.00013873,2]
[339660041,1727817053642,-500.0,0.00013873,2]
[339660042,1727817053652,-175.530664,0.00013873,2]
[339660043,1727817053663,-175.530664,0.00013873,2]
[339660044,1727817053672,-151.0,0.00013873,2]
[339660045,1727817053682,-151.0,0.00013873,2]
[339660046,1727817053691,-151.0,0.00013873,2]
[339660047,1727817053700,-650.99669922,0.00013883,2]
[339660048,1727817053713,-150.0,0.00013883,2]
[339660049,1727817053724,-151.0,0.00013896,2]
[339660050,1727817053733,-151.0,0.00013896,2]
[339660051,1727817053743,-150.0,0.000139,2]
[339660052,1727817053755,-7211.95011719,0.00014,2]
[339660053,1727817053766,-150.0,0.0001408,2]
[339660054,1727817053777,-153.0,0.000141,2]
[339660055,1727817053787,-247.267469,0.000141,2]
[339660056,1727817053796,-155.5973704,0.00014152,2]
[339660057,1727817053808,-151.05,0.000142,2]
[339660058,1727817053817,-150.0,0.0001426,2]
[339660059,1727817053827,-465.5567417,0.00014345,2]
[339660060,1727817053838,-258.716187,0.00014384,2]
[339660061,1727817053848,-2679.98768211,0.00014401,2]
[339660062,1727817054615,-1173.6576485,0.00014401,2]
[339660063,1727817054632,-3821.41430996,0.00014401,2]
[339660064,1727817054645,-411.11179919,0.00014401,2]
[339660065,1727817054658,-300.78721,0.00014401,2]
[339660066,1727817054680,-548.53406688,0.00014401,2]
[339660067,1727817054691,-613.5885,0.00014401,2]
[339660108,1727818232634,-169.425636,0.00013356,2]
[339660109,1727818232644,-258.716187,0.00013699,2]
[339660110,1727818232654,-500.0,0.00013795,2]
[339660111,1727818232665,-150.0,0.000139,2]
[339660112,1727818232675,-150.0,0.0001413,2]
[339660113,1727818232684,-6137.54255874,0.00014156,2]
[339660114,1727818232694,-480.15461569,0.00014309,2]
[339660115,1727818232704,-150.0,0.0001435,2]
[339660116,1727818232715,-300.0,0.00014397,2]
[339660117,1727818232724,-300.0,0.00014397,2]
[339660118,1727818232734,-153.0,0.00014398,2]
[339660119,1727818232743,-153.0,0.00014398,2]
[339660120,1727818232753,-153.0,0.00014398,2]
[339660121,1727818232763,-153.0,0.00014398,2]
[339660122,1727818232772,-153.0,0.00014398,2]
[339660123,1727818232782,-2322.82392859,0.000144,2]
[339660124,1727818232792,-15859.23387037,0.00014401,2]
[339660125,1727818232801,-560.236,0.0001449,2]
[339660126,1727818232810,-160.133,0.0001449,2]
[339660127,1727818232820,-1236.519,0.0001449,2]
[339660128,1727818232829,-5400.412,0.0001449,2]
[339660129,1727818232838,-193.58380099,0.00014528,2]
[339660130,1727818232847,-393.06,0.00014528,2]
[339660131,1727818232856,-150.0,0.0001458,2]
[339660132,1727818232866,-843.0,0.000146,2]
[339660133,1727818232878,-170.517,0.00014601,2]
[339660134,1727818232887,-150.0,0.00014601,2]
[339660135,1727818232896,-150.164,0.00014601,2]
[339660136,1727818232907,-150.0,0.00014601,2]
[339660137,1727818232917,-150.0,0.00014601,2]
[339660138,1727818232927,-221.5,0.00014601,2]
[339660139,1727818232936,-251.376,0.00014601,2]
[339660140,1727818232946,-167.38561276,0.00014617,2]
[339660141,1727818232955,-518.50617204,0.0001471,2]
[339660142,1727818232965,-518.50617204,0.00014755,2]
[339660143,1727818232975,-151.059,0.000148,2]
[339660144,1727818232984,-8169.24448695,0.000148,2]
[339660145,1727818232994,-518.50617204,0.000148,2]
[339660146,1727818233004,-1000.0,0.000148,2]
[339660147,1727818233014,-230.0,0.0001481,2]
[339660148,1727818233023,-518.50617204,0.00014845,2]
[339660149,1727818233033,-518.50617204,0.0001489,2]
[339660150,1727818233042,-157.91095603,0.000149,2]
[339660151,1727818233052,-38639.54782284,0.00014955,2]
[339660152,1727818233061,-820.49113881,0.00014958,2]
[339660153,1727818233071,-1000.0,0.00014965,2]
[339660154,1727818233080,-500.0,0.00014973,2]
[339660155,1727818233090,-500.0,0.00014973,2]
[339660156,1727818233099,-500.0,0.00014973,2]
[339660157,1727818233109,-500.0,0.00014973,2]
[339660158,1727818233118,-500.0,0.00014973,2]
[339660159,1727818233129,-500.0,0.00014973,2]
[339660160,1727818233139,-92949.8209483,0.00014979,2]
[339660161,1727818233148,-209.36991291,0.00014979,2]
[339660162,1727818233158,-500.0,0.00014979,2]
[339660163,1727818233168,-284.64621084,0.00014979,2]
[339660164,1727818233177,-500.0,0.00014979,2]
[339660165,1727818233186,-500.0,0.00014979,2]
[339660166,1727818233195,-500.0,0.00014979,2]
[339660167,1727818233205,-500.0,0.00014979,2]
[339660168,1727818233214,-500.0,0.00014979,2]
[339660169,1727818233223,-500.0,0.00014979,2]
[339660170,1727818233234,-117015.26974839,0.0001498,2]
[339660171,1727818233246,-37177.47196308,0.0001498,2]
[339660172,1727818233258,-1175.58959362,0.0001498,2]
[339660182,1727818238544,-857.20586399,0.00014528,2]
[339660184,1727818238555,-500.0,0.00014973,2]
[339660186,1727818238567,-500.0,0.00014978,2]
[339660187,1727818238576,-500.0,0.00014978,2]
[339660188,1727818238587,-500.0,0.00014978,2]
[339660189,1727818238597,-450.66055765,0.00014978,2]
[339660190,1727818238608,-500.0,0.00014978,2]
[339660191,1727818238620,-500.0,0.00014978,2]
[339660192,1727818238633,-62.68143256,0.00014978,2]
[339660193,1727818238646,-437.31856744,0.00014978,2]
[339660194,1727818238656,-162.99101638,0.00014978,2]
[339660196,1727818238670,-337.00898362,0.00014978,2]
[339660198,1727818238682,-500.0,0.00014978,2]
[339660200,1727818238693,-500.0,0.00014978,2]
[339660202,1727818238704,-500.0,0.00014978,2]
[339660203,1727818238714,-500.0,0.00014978,2]
[339660204,1727818238724,-500.0,0.00014978,2]
[339660205,1727818238734,-500.0,0.00014978,2]
[339660206,1727818238744,-626.28888548,0.00014979,2]
[339660207,1727818238754,-500.0,0.00014979,2]
[339660208,1727818238764,-500.0,0.00014979,2]
[339660209,1727818238774,-500.0,0.00014979,2]
[339660210,1727818238785,-500.0,0.00014979,2]
[339660211,1727818238794,-500.0,0.00014979,2]
[339660212,1727818238804,-6487.13807503,0.0001498,2]
[339660213,1727818238816,-24044.17251688,0.0001498,2]
[339660214,1727818238826,-15157.54040048,0.0001499,2]
[339660215,1727818238859,-157.91095603,0.000149,2]
[339660216,1727818238869,-512.33683822,0.0001499,2]
[339660219,1727818240509,-52957.12041645,0.0001499,2]
[339660221,1727818240588,-24322.82329315,0.0001499,2]
[339660222,1727818240599,-42269.73701,0.00014999,2]
[339660223,1727818240609,-1000.0,0.00015,3]
[339660224,1727818240619,-1445.20361032,0.00015,7]
[339660225,1727818240629,-1000.0,0.00015,2]
[339660226,1727818240639,-2000.0,0.00015,2]
[339660227,1727818240648,-48238.81119035,0.00015,2]
[339660263,1727818243540,-32848.70457218,0.00015,2]
[339660290,1727819434402,-150.0,0.000139,2]
[339660291,1727819434413,-150.0,0.0001435,2]
[339660292,1727819434424,-150.0,0.00014452,2]
[339660293,1727819434433,-525.0,0.00014452,2]
[339660294,1727819434444,-1217.0,0.00014452,2]
[339660295,1727819434611,-150.0,0.00014452,2]
[339660296,1727819434622,-150.0,0.00014452,2]
[339660297,1727819434633,-135.75533547,0.00014531,2]
[339660298,1727819434672,-164.24466453,0.00014531,2]
[339660299,1727819434683,-142.55633547,0.00014532,2]
[339660338,1727819437889,-2827.294796,0.00014532,2]
[339660342,1727819438002,-1010.52924698,0.00014532,2]
[339660351,1727819439758,-2194.76989884,0.00014532,2]
[339660352,1727819439768,-153.0,0.000148,2]
[339660353,1727819439778,-153.0,0.000148,2]
[339660354,1727819439787,-153.0,0.000148,2]
[339660355,1727819439796,-234.0,0.0001481,2]
[339660357,1727819439806,-153.0,0.000149,2]
[339660359,1727819439815,-153.0,0.000149,2]
[339660361,1727819439825,-208.21312646,0.00014969,2]
[339660362,1727819439834,-1000.0,0.00014977,2]
[339660363,1727819439843,-1935.68660715,0.00014999,2]
[339660364,1727819439852,-314.448,0.00014999,2]
[339660365,1727819439862,-16171.28154103,0.00015,2]
[339660376,1727819442787,-1613.07217263,0.00014999,2]
[339660377,1727819442796,-1741.20269644,0.00015,2]
[339660378,1727819442805,-250.0,0.00015,2]
[339660379,1727819442815,-838.35593171,0.00015,2]
[339660380,1727819442825,-465.75773078,0.00015024,2]
[339660381,1727819442834,-800.0,0.00015047,2]
[339660382,1727819442844,-800.0,0.00015047,2]
[339660383,1727819442857,-800.0,0.00015047,2]
[339660384,1727819442868,-500.0,0.00015058,2]
[339660385,1727819442882,-74468.6449888,0.00015067,2]
[339660386,1727819442894,-1504.0,0.00015069,2]
[339660387,1727819442904,-500.0,0.00015075,2]
[339660388,1727819442915,-500.0,0.00015075,2]
[339660389,1727819442926,-500.0,0.00015075,2]
[339660390,1727819442935,-500.0,0.00015075,2]
[339660391,1727819442946,-500.0,0.00015075,2]
[339660392,1727819442956,-500.0,0.00015075,2]
[339660393,1727819442965,-500.0,0.00015075,2]
[339660394,1727819442977,-500.0,0.00015075,2]
[339660395,1727819442987,-500.0,0.00015075,2]
[339660396,1727819442996,-500.0,0.00015075,2]
[339660397,1727819443005,-500.0,0.00015075,2]
[339660398,1727819443015,-500.0,0.00015075,2]
[339660399,1727819443024,-500.0,0.00015075,2]
[339660400,1727819443034,-500.0,0.00015075,2]
[339660401,1727819443043,-500.0,0.00015075,2]
[339660402,1727819443053,-500.0,0.00015075,2]
[339660403,1727819443062,-500.0,0.00015075,2]
[339660404,1727819443072,-500.0,0.00015075,2]
[339660405,1727819443081,-500.0,0.00015075,2]
[339660406,1727819443091,-500.0,0.00015075,2]
[339660407,1727819443102,-500.0,0.00015075,2]
[339660408,1727819443259,-500.0,0.00015075,2]
[339660409,1727819443271,-500.0,0.00015075,2]
[339660410,1727819443282,-500.0,0.00015075,2]
[339660411,1727819443294,-500.0,0.00015075,2]
[339660412,1727819443305,-500.0,0.00015075,2]
[339660413,1727819443317,-500.0,0.00015075,2]
[339660414,1727819443328,-500.0,0.00015075,2]
[339660415,1727819443338,-500.0,0.00015075,2]
[339660416,1727819443350,-500.0,0.00015075,2]
[339660417,1727819443360,-500.0,0.00015075,2]
[339660418,1727819443370,-500.0,0.00015075,2]
[339660419,1727819443383,-500.0,0.00015075,2]
[339660420,1727819443393,-500.0,0.00015075,2]
[339660421,1727819443404,-500.0,0.00015075,2]
[339660422,1727819443414,-500.0,0.00015075,2]
[339660423,1727819443425,-500.0,0.00015075,2]
[339660424,1727819443436,-500.0,0.00015075,2]
[339660425,1727819443446,-500.0,0.00015075,2]
[339660426,1727819443457,-500.0,0.00015075,2]
[339660427,1727819443467,-500.0,0.00015075,2]
[339660428,1727819443479,-500.0,0.00015075,2]
[339660429,1727819443490,-500.0,0.00015075,2]
[339660430,1727819443500,-500.0,0.00015075,2]
[339660431,1727819443511,-500.0,0.00015075,2]
[339660432,1727819443522,-500.0,0.00015075,2]
[339660433,1727819443532,-500.0,0.00015075,2]
[339660434,1727819443542,-500.0,0.00015075,2]
[339660435,1727819443552,-500.0,0.00015075,2]
[339660436,1727819443562,-500.0,0.00015075,2]
[339660437,1727819443572,-500.0,0.00015075,2]
[339660438,1727819443582,-500.0,0.00015075,2]
[339660439,1727819443592,-500.0,0.00015075,2]
[339660440,1727819443602,-500.0,0.00015075,2]
[339660441,1727819443612,-500.0,0.00015075,2]
[339660442,1727819443624,-500.0,0.00015075,2]
[339660443,1727819443635,-500.0,0.00015075,2]
[339660444,1727819443649,-500.0,0.00015075,2]
[339660445,1727819443659,-500.0,0.00015075,2]
[339660446,1727819443670,-500.0,0.00015075,2]
[339660447,1727819443683,-500.0,0.00015075,2]
[339660448,1727819443694,-500.0,0.00015075,2]
[339660449,1727819443705,-500.0,0.00015075,2]
[339660450,1727819443715,-500.0,0.00015075,2]
[339660451,1727819443725,-500.0,0.00015075,2]
[339660452,1727819443735,-500.0,0.00015075,2]
[339660453,1727819443745,-500.0,0.00015075,2]
[339660454,1727819443755,-500.0,0.00015075,2]
[339660455,1727819443766,-500.0,0.00015075,2]
[339660456,1727819443775,-354.89366664,0.00015075,2]
[339660457,1727819443785,-500.0,0.00015075,2]
[339660458,1727819443795,-500.0,0.00015075,2]
[339660459,1727819443805,-500.0,0.00015075,2]
[339660460,1727819443815,-300.0,0.00015075,2]
[339660461,1727819443825,-500.0,0.00015075,2]
[339660462,1727819443835,-74468.6449888,0.00015076,2]
[339660463,1727819443845,-39794.95388353,0.00015077,2]
[339660464,1727819443930,-34673.69110527,0.00015077,2]
[339660465,1727819443940,-500.0,0.00015086,2]
[339660466,1727819443950,-199.25234759,0.00015086,2]
[339660467,1727819443960,-500.0,0.00015086,2]
[339660468,1727819443969,-500.0,0.00015086,2]
[339660469,1727819443979,-500.0,0.00015086,2]
[339660470,1727819443988,-488.40221984,0.00015086,2]
[339660471,1727819443998,-500.0,0.00015086,2]
[339660472,1727819444007,-500.0,0.00015086,2]
[339660473,1727819444017,-483.74904777,0.00015086,2]
[339660474,1727819444026,-500.0,0.00015086,2]
[339660475,1727819444035,-500.0,0.00015086,2]
[339660476,1727819444045,-500.0,0.00015086,2]
[339660477,1727819444055,-500.0,0.00015086,2]
[339660478,1727819444065,-500.0,0.00015086,2]
[339660479,1727819444075,-500.0,0.00015086,2]
[339660480,1727819444084,-500.0,0.00015086,2]
[339660481,1727819444094,-500.0,0.00015086,2]
[339660482,1727819444104,-500.0,0.00015086,2]
[339660483,1727819444114,-500.0,0.00015086,2]
[339660484,1727819444123,-155.46286248,0.00015086,2]
[339660485,1727819444134,-500.0,0.00015086,2]
[339660486,1727819444143,-500.0,0.00015086,2]
[339660487,1727819444153,-500.0,0.00015086,2]
[339660488,1727819444163,-500.0,0.00015086,2]
[339660489,1727819444177,-500.0,0.00015086,2]
[339660490,1727819444187,-600.0,0.00015086,2]
[339660491,1727819444199,-68101.15472642,0.00015087,2]
[339660492,1727819444211,-800.0,0.00015114,2]
[339660493,1727819444222,-800.0,0.00015114,2]
[339660494,1727819444241,-800.0,0.00015114,2]
[339660495,1727819444260,-807.43337041,0.00015114,2]
[339660496,1727819444273,-800.0,0.00015114,2]
[339660497,1727819444283,-191.56250377,0.00015114,2]
[339660498,1727819444293,-600.0,0.00015168,2]
[339660499,1727819444303,-800.0,0.00015172,2]
[339660500,1727819444313,-800.0,0.00015172,2]
[339660501,1727819444323,-500.3759357,0.00015183,2]
[339660502,1727819444333,-501.0002362,0.00015183,2]
[339660503,1727819444343,-1613.93,0.000152,2]
[339660504,1727819444353,-1000.0,0.000152,2]
[339660505,1727819444364,-800.0,0.00015224,2]
[339660506,1727819444374,-1000.0,0.000153,3]
[339660507,1727819444385,-444.266501,0.00015311,2]
[339660508,1727819444394,-1600.867601,0.00015311,2]
[339660509,1727819444405,-163.709046,0.00015311,2]
[339660510,1727819444414,-832.825191,0.00015311,2]
[339660511,1727819444424,-222.13325,0.00015319,2]
[339660512,1727819444435,-186.58368,0.00015319,2]
[339660513,1727819444445,-1004.524385,0.00015319,2]
[339660514,1727819444455,-184.063599,0.00015319,2]
[339660515,1727819444465,-867.487226,0.00015319,2]
[339660516,1727819444475,-583.070698,0.00015319,2]
[339660517,1727819444485,-617.86679,0.00015319,2]
[339660518,1727819444496,-968.57199445,0.00015324,2]
[339660519,1727819444505,-600.0,0.00015326,2]
[339660520,1727819444515,-800.0,0.00015375,2]
[339660521,1727819444526,-1431.42800555,0.00015375,2]
[339660522,1727819444535,-308.43749623,0.00015375,2]
[339660523,1727819444545,-1000.0,0.000154,4]
[339660524,1727819444554,-1282.61722519,0.00015413,2]
[339660529,1727819466440,311.0,0.00021,120]
[339660558,1727820631821,-150.0,0.00014452,2]
[339660559,1727820631832,-150.0,0.00014452,2]
[339660560,1727820631843,-300.0,0.00014492,2]
[339660561,1727820631854,-150.0,0.00014493,2]
[339660562,1727820631864,-150.0,0.00014493,2]
[339660563,1727820631875,-150.0,0.00014493,2]
[339660564,1727820631887,-150.0,0.00014493,2]
[339660565,1727820631898,-525.0,0.00014493,2]
[339660567,1727820631908,-1211.06602369,0.00014493,2]
[339660568,1727820631921,-5.93397631,0.00014493,2]
[339660570,1727820631933,-238.0,0.0001483,2]
[339660572,1727820631945,-242.61478605,0.00014987,2]
[339660575,1727820631971,-222.42518267,0.00014987,2]
[339660578,1727820631982,-685.45926935,0.00015,2]
[339660662,1727820638107,-739.258,0.00015,2]
[339660663,1727820638119,-914.55,0.00015,2]
[339660733,1727820642891,-4085.93054835,0.00015,2]
[339660734,1727820642901,-500.0,0.00015058,2]
[339660735,1727820642910,-1139.3,0.000152,2]
[339660736,1727820642920,-4802.04803641,0.0001531,2]
[339660737,1727820642929,-913.6101219,0.00015411,2]
[339660738,1727820642938,-1344.22681052,0.00015412,2]
[339660739,1727820642948,-800.0,0.00015423,2]
[339660740,1727820642959,-800.0,0.00015423,2]
[339660741,1727820642968,-800.0,0.00015423,2]
[339660742,1727820642978,-805.7021,0.00015448,2]
[339660743,1727820642988,-800.0,0.00015448,2]
[339660744,1727820642997,-1000.0,0.00015461,2]
[339660746,1727820643006,-738.44202492,0.00015471,2]
[339660747,1727820643016,-1000.0,0.000155,5]
[339660748,1727820643025,-444.266501,0.00015503,2]
[339660749,1727820643034,-1600.867601,0.00015503,2]
[339660750,1727820643043,-832.825191,0.00015503,2]
[339660751,1727820643053,-800.0,0.0001551,2]
[339660752,1727820643062,-800.0,0.0001551,2]
[339660753,1727820643071,-222.13325,0.00015511,2]
[339660754,1727820643081,-1004.524385,0.00015511,2]
[339660755,1727820643090,-867.487226,0.00015511,2]
[339660756,1727820643099,-583.070698,0.00015511,2]
[339660757,1727820643109,-617.86679,0.00015511,2]
[339660758,1727820643118,-558.90395447,0.00015511,2]
[339660759,1727820643127,-251.558,0.00015539,2]
[339660760,1727820643138,-800.0,0.00015539,2]
[339660761,1727820643147,-600.0,0.00015539,2]
[339660762,1727820643156,-500.0,0.00015559,2]
[339660763,1727820643165,-541.88155388,0.00015559,2]
[339660764,1727820643175,-500.0,0.00015559,2]
[339660765,1727820643185,-500.0,0.00015559,2]
[339660766,1727820643194,-500.0,0.00015559,2]
[339660767,1727820643205,-500.0,0.00015559,2]
[339660768,1727820643215,-500.0,0.00015559,2]
[339660769,1727820643224,-500.0,0.00015559,2]
[339660770,1727820643234,-500.0,0.00015559,2]
[339660771,1727820643243,-500.0,0.00015559,2]
[339660772,1727820643253,-500.0,0.00015559,2]
[339660773,1727820643262,-500.0,0.00015559,2]
[339660774,1727820643271,-500.0,0.00015559,2]
[339660775,1727820643281,-500.0,0.00015559,2]
[339660777,1727820643291,-500.0,0.00015559,2]
[339660779,1727820643301,-621.58866296,0.00015559,2]
[339660781,1727820643310,-500.0,0.00015559,2]
[339660783,1727820643320,-188.62433344,0.00015559,2]
[339660785,1727820643330,-500.0,0.00015559,2]
[339660787,1727820643341,-500.0,0.00015559,2]
[339660788,1727820643351,-500.0,0.00015559,2]
[339660789,1727820643363,-500.0,0.00015559,2]
[339660792,1727820643375,-621.64720112,0.00015559,2]
[339660793,1727820643385,-105239.62911885,0.0001556,2]
[339660794,1727820645977,-1120.18900877,0.00015412,2]
[339660795,1727820645989,-82805.8148559,0.0001556,2]
[339670521,1727821832125,-473.83415027,0.00014532,2]
[339670522,1727821832136,-743.16584973,0.00014532,2]
[339670523,1727821832146,-138.30028923,0.00014532,2]
[339670578,1727821840010,-386.69971077,0.00014532,2]
[339670580,1727821840021,-150.0,0.00014532,2]
[339670582,1727821840031,-500.0,0.00015058,2]
[339670583,1727821840040,-1000.0,0.00015058,2]
[339670584,1727821840050,-150.0,0.0001508,2]
[339670585,1727821840059,-2738.60028845,0.00015155,2]
[339670586,1727821840071,-2063.44774797,0.00015155,2]
[339670587,1727821840080,-300.0,0.00015269,2]
[339670588,1727821840090,-300.0,0.00015269,2]
[339670589,1727821840099,-242.0,0.0001527,2]
[339670590,1727821840109,-842.47072419,0.0001527,2]
[339670613,1727821843234,-157.52926581,0.0001527,2]
[339670614,1727821843244,-457.47073419,0.00015481,2]
[339670615,1727821843382,-542.52926581,0.00015481,2]
[339670616,1727821843391,-799.40885668,0.00015481,2]
[339670617,1727821843401,-1000.0,0.00015553,2]
[339670618,1727821843411,-933.49084064,0.00015559,2]
[339670619,1727821843420,-1000.0,0.00015559,2]
[339670620,1727821843434,-664.59782241,0.00015561,2]
[339670621,1727821843444,-1000.0,0.00015563,2]
[339670622,1727821843460,-1000.0,0.00015571,2]
[339670623,1727821843471,-586.11092089,0.00015581,2]
[339670624,1727821843481,-13393.41262284,0.00015581,2]
[339670636,1727821846076,-308.04472625,0.00015581,2]
[339670637,1727821846105,-711.21448362,0.00015581,2]
[339670690,1727823038278,-150.0,0.00014568,2]
[339670692,1727823038290,-525.0,0.00014568,2]
[339670694,1727823038300,-1099.93,0.00014568,2]
[339670716,1727823040297,-117.07,0.00014568,2]
[339670717,1727823040308,-150.0,0.00014568,2]
[339670718,1727823040318,-150.0,0.00014568,2]
[339670719,1727823040328,-186.573419,0.00014593,2]
[339670720,1727823040338,-465.00199844,0.0001495,2]
[339670721,1727823040349,-166.599938,0.00015311,2]
[339670722,1727823040359,-598.13804016,0.00015441,2]
[339670723,1727823040369,-1000.0,0.0001545,2]
[339670724,1727823040381,-1000.0,0.00015491,2]
[339670725,1727823040393,-425.0,0.0001551,2]
[339670726,1727823040405,-300.0,0.00015528,2]
[339670727,1727823040416,-218.79512632,0.00015529,2]
[339670728,1727823040427,-500.0,0.00015529,2]
[339670729,1727823040439,-482.03703341,0.00015529,2]
[339670730,1727823040451,-500.0,0.00015529,2]
[339670731,1727823040462,-500.0,0.00015529,2]
[339670732,1727823040475,-500.0,0.00015529,2]
[339670733,1727823040487,-500.0,0.00015529,2]
[339670734,1727823040501,-457.95429588,0.00015529,2]
[339670735,1727823040512,-500.0,0.00015529,2]
[339670736,1727823040523,-500.0,0.00015529,2]
[339670737,1727823040532,-500.0,0.00015529,2]
[339670738,1727823040542,-592.3298434,0.00015529,2]
[339670739,1727823040552,-300.0,0.00015529,2]
[339670740,1727823040562,-510.5219614,0.00015529,2]
[339670741,1727823040572,-59794.85581024,0.00015529,2]
[339670742,1727823040591,-4846.17866659,0.00015529,2]
[339670743,1727823040602,-390.74061393,0.00015529,2]
[339670744,1727823040612,-7763.35080798,0.0001553,2]
[339670774,1727823043503,-854.28343769,0.0001553,2]
[339670775,1727823043526,-46978.70604982,0.0001553,2]
[339670778,1727823046268,-4430.47378529,0.0001553,2]
[339670779,1727823046282,-54985.76426451,0.0001553,2]
[339670780,1727823046318,-78270.70648015,0.0001553,2]
[339670781,1727823046328,-96801.94262371,0.0001553,2]
[339670782,1727823368469,150.0,0.00021,60]
[339670838,1727824238462,-300.0,0.00014567,2]